bitfinex-derivatives/quotes_ETHF0:USTF0_20251012
["timestamp","ask_amount","ask_price","bid_price","bid_amount"]
[1760289961783,0.43483,4136.3,4136.0,1.0649]
[1760289961977,0.43483,4136.2,4136.1,2.8117]
[1760289962373,3.21003577,4136.7,4136.1,2.8117]
[1760289962881,3.21003577,4136.7,4136.1,2.7007]
[1760289962882,6.48675483,4136.6,4136.1,2.7007]
[1760289963185,0.4348,4136.5,4136.1,2.7007]
[1760289963475,3.21003577,4136.7,4136.1,2.7007]
[1760289963476,3.21003577,4136.7,4136.5,1.0847]
[1760289963675,3.64481577,4136.7,4136.6,2.7007]
[1760289964180,3.64481577,4136.7,4136.1,3.2078]
[1760289964181,5.96259844,4136.7,4136.1,3.2078]
[1760289964479,0.43482,4136.3,4136.1,3.2078]
[1760289964980,0.43482,4136.3,4136.2,2.7007]
[1760289965179,0.43482,4136.3,4136.1,3.2078]
[1760289965478,0.4348,4136.5,4136.2,2.7007]
[1760289965879,0.43481,4136.4,4136.2,2.7007]
[1760289966071,0.43487,4135.9,4135.6,5.9085]
[1760289966271,1.08701,4136.5,4135.6,3.2078]
[1760289966272,3.13747,4135.8,4135.6,3.2078]
[1760289966482,0.43484,4136.1,4135.6,3.2078]
[1760289966781,0.43484,4136.1,4135.7,2.7007]
[1760289966982,0.43486,4135.9,4135.7,2.7007]
[1760289967381,6.33702,4136.5,4135.7,2.7007]
[1760289967382,0.43487,4135.8,4135.7,2.7007]
[1760289967585,0.43487,4135.8,4135.6,3.2078]
[1760289967586,2.7026,4135.7,4135.6,3.2078]
[1760289967878,3.13749,4135.6,4135.5,0.00191024]
[1760289968177,3.2078,4135.7,4135.5,0.00191024]
[1760289968383,3.64263,4136.2,4135.6,3.13559]
[1760289968686,3.2078,4136.2,4135.5,1.08661024]
[1760289968879,2.62710742,4136.1,4135.5,1.52151024]
[1760289969076,0.43488,4135.7,4135.6,2.7007]
[1760289969280,0.43488,4135.7,4135.5,1.08661024]
[1760289969281,3.64268,4135.7,4135.5,0.00191024]
[1760289969988,2.69539207,4135.6,4135.5,0.00191024]
[1760289970388,2.69539207,4135.6,4135.5,2.70261024]
[1760289970986,2.69539207,4135.6,4135.5,0.00191024]
[1760289971176,5.39799207,4135.6,4135.5,0.00191024]
[1760289971384,0.43504,4134.2,4134.1,2.7007]
[1760289972290,0.43502,4134.4,4134.1,2.70242821]
[1760289972492,0.43503,4134.3,4134.2,2.7007]
[1760289972788,2.79595282,4134.4,4134.2,2.7007]
[1760289972981,2.79595282,4134.4,4134.1,0.00172821]
[1760289973182,3.23098282,4134.4,4134.2,2.7007]
[1760289973479,2.79595282,4134.4,4134.2,2.7007]
[1760289973785,3.2078,4134.5,4134.2,2.7007]
[1760289973985,3.2078,4135.2,4134.7,0.43499]
[1760289974176,3.2078,4135.2,4135.1,2.7007]
[1760289974378,2.7026,4135.0,4134.8,2.7007]
[1760289974583,3.13756,4135.0,4134.8,2.7007]
[1760289974784,2.61680701,4134.9,4134.6,2.7007]
[1760289974986,3.2078,4135.2,4134.7,0.43499]
[1760289975194,3.2078,4135.2,4135.1,2.7007]
[1760289976094,3.2078,4135.2,4135.1,3.13564]
[1760289976292,2.17329,4137.9,4136.1,2.7007]
[1760289976293,3.2078,4136.8,4136.1,2.7007]
[1760289976489,0.43483,4136.2,4136.0,1.0847]
[1760289976698,0.43481,4136.4,4136.1,2.7007]
[1760289976893,3.64262,4136.3,4136.1,2.7007]
[1760289977497,3.64262,4136.3,4136.0,1.0847]
[1760289977994,3.64262,4136.3,4136.1,2.7007]
[1760289978395,3.64262,4136.3,4136.0,1.0847]
[1760289978594,0.4348,4136.5,4136.1,2.7007]
[1760289978801,0.4348,4136.5,4136.0,1.0847]
[1760289978998,0.43481,4136.4,4136.1,2.7007]
[1760289979201,0.43482,4136.3,4136.0,1.0847]
[1760289979397,3.2078,4136.8,4136.0,1.0847]
[1760289979603,3.2078,4136.8,4136.6,2.7007]
[1760289979894,3.64257,4136.8,4136.6,2.7007]
[1760289980298,3.2078,4137.3,4136.6,2.7007]
[1760289980493,0.43473,4137.1,4136.6,2.7007]
[1760289981502,3.64252,4137.3,4136.6,2.7007]
[1760289981802,0.43473,4137.2,4136.6,2.7007]
[1760289982002,0.43474,4137.1,4136.6,2.7007]
[1760289982204,3.2078,4137.3,4136.6,2.7007]
[1760289982205,0.43477,4136.8,4136.6,2.7007]
[1760289982600,3.2078,4136.8,4136.3,2.7007]
[1760289982907,0.43481,4136.4,4136.3,2.7007]
[1760289983607,0.43481,4136.4,4136.2,2.0842832]
[1760289983807,0.43481,4136.4,4136.0,3.1689832]
[1760289984007,0.43481,4136.4,4136.0,1.0847]
[1760289984306,0.43482,4136.3,4136.2,2.7007]
[1760289984498,0.4348,4136.5,4136.2,2.7007]
[1760289984698,0.4348,4136.5,4136.1,2.0842832]
[1760289984900,0.4348,4136.5,4136.2,2.7007]
[1760289985101,0.43481,4136.4,4136.2,2.7007]
[1760289985304,3.13741,4136.4,4136.2,2.7007]
[1760289985703,0.43481,4136.4,4136.0,3.1689832]
[1760289985901,0.43481,4136.4,4136.1,2.7007]
[1760289986306,0.43481,4136.4,4136.0,3.1689832]
[1760289986507,0.43481,4136.4,4136.2,2.7007]
[1760289986706,0.43482,4136.3,4136.0,3.1689832]
[1760289986909,0.43484,4136.1,4136.0,4.7849832]
[1760289987101,2.57395635,4136.6,4136.5,1.0847]
[1760289987297,0.43477,4136.8,4136.5,3.7854]
[1760289987500,0.43477,4136.8,4136.6,2.7007]
[1760289988107,3.64257,4136.8,4136.6,2.7007]
[1760289988307,0.4348,4136.5,4136.3,4.7849832]
[1760289988509,0.4348,4136.5,4136.2,2.7007]
[1760289989007,0.43701577,4136.7,4136.2,4.7849832]
[1760289989303,0.43479,4136.6,4136.2,2.0842832]
[1760289989610,0.43479,4136.6,4136.3,2.7007]
[1760289989908,0.43479,4136.6,4136.2,2.0842832]
[1760289990112,0.43479,4136.6,4136.3,2.7007]
[1760289990306,0.43479,4136.6,4136.2,2.5191032]
[1760289990513,0.43479,4136.6,4136.3,2.7007]
[1760289990711,0.43479,4136.6,4136.2,2.5191032]
[1760289991015,0.43700577,4136.7,4136.2,2.5191032]
[1760289991211,0.43479,4136.6,4136.2,2.5191032]
[1760289991410,2.7026,4136.4,4136.1,2.0842832]
[1760289991709,1.08713,4136.0,4135.6,1.60291052]
[1760289991909,2.7026,4135.9,4135.3,5.9085]
[1760289992105,2.7026,4135.7,4135.3,5.9085]
[1760289992309,2.7026,4135.6,4135.3,5.9085]
[1760289992512,0.43491,4135.4,4135.3,5.9085]
[1760289993013,2.96161,4135.4,4135.3,3.2078]
[1760289993412,0.4349,4135.5,4135.3,5.8133]
[1760289993609,0.4349,4135.5,4135.4,2.6055]
[1760289994110,0.43496,4135.0,4134.6,2.6055]
[1760289994311,3.2078,4135.1,4134.6,2.6055]
[1760289994616,1.08744,4134.8,4134.2,2.6055]
[1760289994807,0.43503,4134.3,4134.2,2.6055]
[1760289995210,0.43503,4134.3,4134.1,0.00172821]
[1760289995405,2.5267,4134.2,4134.1,0.00172821]
[1760289995611,0.43503,4134.3,4134.1,2.60722821]
[1760289995914,5.28423254,4134.2,4134.1,0.00172821]
[1760289997313,0.43513,4133.3,4133.2,5.8133]
[1760289998012,6.02104978,4137.2,4133.3,2.6055]
[1760289998013,0.43509,4133.7,4133.3,2.6055]
[1760289998317,0.4351,4133.6,4133.5,3.6803]
[1760289998512,0.51687112,4133.6,4133.5,2.6055]
[1760289998715,0.08177112,4133.6,4133.5,2.6055]
[1760289999019,0.00197944,4133.7,4133.6,2.6055]
[1760289999916,0.43706944,4133.7,4133.6,2.6055]
[1760290000419,0.00197944,4133.7,4133.6,2.6055]
[1760290003920,0.43512,4133.4,4133.3,2.62362357]
[1760290005419,5.59660856,4133.4,4133.3,0.00262357]
[1760290005618,8.80440856,4133.4,4133.3,0.00262357]
[1760290006415,0.00197944,4133.7,4133.6,0.4351]
[1760290006616,0.00197944,4133.7,4133.6,2.621]
[1760290007116,2.6382,4133.6,4133.3,2.62362357]
[1760290007419,3.07332,4133.4,4133.3,0.00262357]
[1760290007620,6.28112,4133.4,4133.3,0.00262357]
[1760290007914,6.28112,4133.4,4132.5,5.8288]
[1760290007915,0.43521,4132.6,4132.5,5.8288]
[1760290008320,5.72663654,4132.6,4132.5,3.2078]
[1760290008821,5.72663654,4132.6,4132.5,3.21075567]
[1760290009421,8.93443654,4132.6,4132.5,0.00295567]
[1760290009618,3.64301,4132.6,4132.5,2.62395567]
[1760290010120,6.28121,4132.6,4132.5,0.00295567]
[1760290010417,2.6382,4131.8,4131.2,2.621]
[1760290010621,0.43534,4131.3,4131.2,2.621]
[1760290011215,5.32510389,4131.3,4131.0,2.621]
[1760290011419,5.32510389,4131.3,4131.0,2.62323572]
[1760290011619,0.43537,4131.1,4131.0,2.62323572]
[1760290011816,0.43537,4131.1,4131.0,0.00223572]
[1760290012124,0.43543,4130.5,4130.4,2.621]
[1760290012323,3.07363,4130.5,4130.3,3.2078]
[1760290012626,0.43546,4130.3,4130.0,3.703]
[1760290012920,0.43546,4130.2,4130.1,2.621]
[1760290013120,0.43814937,4130.2,4130.1,2.62378488]
[1760290013826,0.00268937,4130.2,4130.1,2.62378488]
[1760290014322,0.00268937,4130.2,4130.1,5.83158488]
[1760290015721,3.2078,4131.4,4131.1,2.621]
[1760290015923,0.43536,4131.2,4131.1,2.621]
[1760290016127,3.2078,4131.4,4130.6,0.43541]
[1760290016128,3.08081697,4131.3,4130.6,2.621]
[1760290016319,0.43538,4131.0,4130.5,1.082]
[1760290016520,0.43538,4131.0,4130.6,2.621]
[1760290016721,0.43539,4130.9,4130.5,1.082]
[1760290016921,0.43539,4130.9,4130.6,2.621]
[1760290017123,0.43542,4130.7,4130.6,2.621]
[1760290017620,0.43542,4130.7,4130.5,1.082]
[1760290017621,0.00301722,4131.0,4130.1,3.21058488]
[1760290017827,0.43546,4130.2,4130.1,2.62378488]
[1760290018117,0.00301722,4131.0,4130.2,3.05646]
[1760290018118,5.84082072,4130.9,4130.2,3.05646]
[1760290018322,3.21081722,4131.0,4130.2,2.621]
[1760290018525,0.43542,4130.6,4130.2,2.621]
[1760290018720,0.4354,4130.8,4130.2,3.05646]
[1760290018919,3.21081722,4131.0,4130.1,3.21058488]
[1760290018920,3.64619722,4131.0,4130.5,1.082]
[1760290019120,3.21081722,4131.0,4130.5,1.082]
[1760290019321,3.64619722,4131.0,4130.6,2.621]
[1760290019522,3.64619722,4131.0,4130.5,1.082]
[1760290019724,0.00301722,4131.0,4130.7,3.2078]
[1760290019921,0.01,4130.8,4130.7,5.8288]
[1760290020320,0.01,4130.8,4130.7,2.621]
[1760290020521,0.43543,4130.5,4130.2,5.8288]
[1760290020721,2.6382,4130.3,4130.1,0.00278488]
[1760290020922,3.07365,4130.3,4130.1,0.00278488]
[1760290021520,2.6382,4130.3,4130.1,2.62378488]
[1760290021720,3.2078,4130.5,4130.2,2.621]
[1760290021932,0.01,4130.8,4130.5,1.082]
[1760290022732,0.01,4130.8,4130.6,2.4482]
[1760290022932,0.4454,4130.8,4130.5,1.082]
[1760290023133,0.01,4130.8,4130.7,2.4482]
[1760290023928,0.00301722,4131.0,4130.8,0.4354]
[1760290024132,3.2078,4132.1,4132.0,3.4858]
[1760290024331,3.2078,4132.6,4132.5,1.0376]
[1760290024534,3.2078,4132.6,4132.5,3.4858]
[1760290024738,0.43522,4132.5,4132.0,1.0376]
[1760290025038,0.00287884,4132.5,4132.3,2.4482]
[1760290025231,0.00287884,4132.5,4132.2,0.43525]
[1760290025232,0.00287884,4132.5,4132.4,2.4482]
[1760290026541,0.00287884,4132.5,4132.0,1.0376]
[1760290026844,0.43525,4132.3,4132.0,1.0376]
[1760290027138,0.43809884,4132.5,4132.0,1.0376]
[1760290027340,0.00287884,4132.5,4132.1,2.4482]
[1760290027540,0.00287884,4132.5,4132.3,3.2078]
[1760290027733,0.00287884,4132.5,4132.4,2.4482]
[1760290027929,3.2078,4133.7,4133.6,2.4482]
[1760290028128,2.6382,4133.6,4133.0,1.0376]
[1760290028736,3.07331,4133.6,4133.0,1.0376]
[1760290028939,2.64026248,4133.6,4133.0,1.04019816]
[1760290029739,2.64026248,4133.6,4133.1,2.4482]
[1760290029740,0.43514,4133.3,4133.1,2.4482]
[1760290030136,2.6382,4133.1,4133.0,0.00259816]
[1760290030444,0.43515,4133.2,4133.1,2.4482]
[1760290030738,0.00206248,4133.6,4133.0,0.00259816]
[1760290030739,0.43513,4133.4,4133.0,0.00259816]
[1760290030939,0.00206248,4133.6,4133.1,2.4482]
[1760290031140,0.00206248,4133.6,4133.5,6.6936]
[1760290031536,3.2078,4134.2,4133.5,6.6936]
[1760290031537,0.43498,4134.8,4133.6,1.08776]
[1760290031740,0.43497,4134.9,4134.3,3.2078]
[1760290031930,2.78777294,4134.9,4134.5,1.0376]
[1760290032240,0.43497,4134.9,4134.6,2.4482]
[1760290032540,0.0017054,4134.9,4134.6,2.4482]
[1760290032738,0.0017054,4134.9,4134.5,1.0376]
[1760290032939,0.0017054,4134.9,4134.6,2.4482]
[1760290033131,0.0017054,4134.9,4134.0,1.0376]
[1760290033132,0.43503,4134.4,4134.0,1.0376]
[1760290033331,0.43504,4134.2,4134.1,2.4482]
[1760290033536,0.43502,4134.4,4134.0,1.0376]
[1760290033738,2.56798368,4134.6,4134.1,2.4482]
[1760290034036,0.43498,4134.8,4134.4,2.4482]
[1760290034235,0.43498,4134.8,4134.5,1.0376]
[1760290034434,2.56798368,4134.8,4134.6,2.4482]
[1760290034639,0.0017054,4134.9,4134.6,2.4482]
[1760290035437,3.0748754,4134.9,4134.6,2.4482]
[1760290035637,2.6399054,4134.9,4134.5,1.4726]
[1760290035837,2.6399054,4134.9,4134.6,2.4482]
[1760290036139,0.43498,4134.8,4134.3,0.43503]
[1760290036343,3.07318,4134.8,4134.3,0.43503]
[1760290036540,3.07318,4134.8,4134.0,1.0376]
[1760290036541,5.86809759,4134.7,4134.0,1.0376]
[1760290036744,0.0017054,4134.9,4134.8,2.4482]
[1760290037536,3.2078,4135.7,4135.0,1.0376]
[1760290037743,3.2078,4135.7,4135.6,2.88309]
[1760290037947,3.2078,4136.3,4135.9,0.43485]
[1760290038148,3.2078,4136.3,4136.1,2.4482]
[1760290038335,3.2078,4136.3,4136.2,2.4482]
[1760290038540,3.21040656,4136.3,4136.2,2.45082318]
[1760290039641,3.21040656,4136.3,4136.2,0.00262318]
[1760290039642,8.47978617,4136.3,4136.2,0.00262318]
[1760290040149,8.47978617,4136.3,4135.1,2.4482]
[1760290040150,2.6382,4135.9,4135.1,2.4482]
[1760290040346,2.6382,4135.5,4134.8,2.4482]
[1760290040642,2.6382,4134.5,4134.4,3.2078]
[1760290040845,5.846,4134.5,4133.8,0.43508]
[1760290041036,8.4471785,4134.5,4133.8,0.00295461]
[1760290041237,0.43504,4134.2,4133.8,0.00295461]
[1760290041441,0.43504,4134.2,4133.8,2.45115461]
[1760290041846,3.07326,4134.0,4133.8,0.00295461]
[1760290042047,2.6382,4133.9,4133.8,0.00295461]
[1760290042449,2.6382,4134.4,4133.8,0.00295461]
[1760290042650,0.43507,4134.0,4133.8,0.00295461]
[1760290042849,2.6382,4133.9,4133.8,0.00295461]
[1760290043145,2.6382,4133.7,4132.8,3.2078]
[1760290043551,3.07336,4133.1,4132.8,3.2078]
[1760290043851,3.07336,4133.1,4131.6,1.08828]
[1760290043852,3.88085769,4133.0,4131.8,2.4482]
[1760290044152,2.6382,4132.1,4131.8,2.4482]
[1760290044447,6.28389595,4132.1,4131.8,2.44994522]
[1760290044948,6.28389595,4132.1,4131.8,0.00174522]
[1760290045246,2.6382,4131.9,4131.8,0.00174522]
[1760290045453,2.57959019,4132.0,4131.8,2.44994522]
[1760290045750,3.21043595,4132.1,4131.8,2.44994522]
[1760290046048,0.00263595,4132.1,4132.0,2.4482]
[1760290046346,0.00263595,4132.1,4131.8,0.00174522]
[1760290046541,2.6382,4132.0,4131.8,0.00174522]
[1760290046849,2.6382,4131.9,4131.8,0.00174522]
[1760290047051,5.713718,4131.9,4131.8,0.00174522]
[1760290047345,8.30172642,4131.9,4131.8,0.00174522]
[1760290047552,8.30172642,4131.9,4130.9,2.4482]
[1760290047746,0.43537,4131.1,4130.6,3.2078]
[1760290047941,3.2078,4131.3,4130.0,3.4858]
[1760290048147,0.43542,4130.6,4130.0,3.4858]
[1760290048348,0.43543,4130.5,4130.0,1.0376]
[1760290048647,2.6382,4130.5,4130.0,1.47616012]
[1760290048847,3.64321,4130.7,4130.1,2.4482]
[1760290049652,3.2078,4131.3,4130.1,2.4482]
[1760290049947,3.2078,4131.3,4130.3,0.43544]
[1760290050155,0.43536,4131.2,4130.4,0.43543]
[1760290050347,0.43536,4131.2,4130.5,0.43542]
[1760290050554,0.43537,4131.1,4130.5,0.43542]
[1760290051055,3.64315,4131.3,4130.7,0.4354]
[1760290051348,3.2078,4131.3,4130.1,2.4482]
[1760290051553,3.64315,4131.3,4130.7,2.8836]
[1760290052154,3.64315,4131.3,4130.8,0.43539]
[1760290052457,3.2078,4131.3,4131.0,2.5282]
[1760290052655,3.2078,4131.3,4130.9,0.43538]
[1760290053052,3.2078,4131.3,4131.0,2.5282]
[1760290053247,2.6382,4131.8,4131.0,2.96357]
[1760290053755,3.2078,4131.9,4131.0,2.5282]
[1760290053756,8.52261192,4131.7,4131.0,2.5282]
[1760290054157,2.6241,4131.7,4131.0,2.5282]
[1760290054455,3.16465522,4131.6,4131.0,2.5282]
[1760290054650,2.16465522,4131.6,4131.0,2.5282]
[1760290054857,3.05944,4131.4,4131.0,2.5282]
[1760290055653,3.05944,4131.4,4130.5,1.073]
[1760290055654,0.43541,4130.7,4130.1,2.5282]
[1760290055950,2.6241,4130.9,4130.1,2.5282]
[1760290056159,5.8319,4130.9,4130.2,2.5282]
[1760290056356,2.6241,4130.5,4130.2,2.5282]
[1760290056557,2.6241,4130.5,4130.2,2.96366]
[1760290056757,2.6241,4130.5,4130.2,0.43546]
[1760290056956,2.6241,4130.5,4130.3,2.5282]
[1760290057352,2.6241,4130.1,4130.0,0.00309012]
[1760290057760,5.94098744,4130.1,4130.0,0.00309012]
[1760290057960,0.9126,4130.0,4129.0,3.5658]
[1760290058162,2.6241,4129.4,4129.0,2.5282]
[1760290058356,2.6241,4129.3,4129.0,2.5282]
[1760290058557,5.30749755,4129.3,4128.8,3.2078]
[1760290058856,2.6241,4129.3,4128.8,3.2078]
[1760290059058,3.0597,4128.9,4128.3,6.17165]
[1760290059257,0.43569,4128.1,4127.7,5.736]
[1760290059460,3.0598,4128.0,4127.7,2.5282]
[1760290059663,0.43567,4128.2,4127.6,2.5282]
[1760290060261,2.5919989,4128.1,4127.6,2.53127709]
[1760290060461,2.6241,4128.0,4127.7,2.5282]
[1760290061181,0.00279552,4128.2,4127.7,2.5282]
[1760290061463,0.00279552,4128.2,4127.6,0.00307709]
[1760290062266,0.00279552,4128.2,4128.0,4.2808]
[1760290062468,0.00279552,4128.2,4128.1,2.5282]
[1760290063659,2.00133,4130.0,4128.0,4.71648]
[1760290063660,3.2078,4129.4,4128.6,2.6165]
[1760290063961,5.88359856,4129.4,4129.1,2.6165]
[1760290064151,5.88359856,4129.4,4129.1,0.43557]
[1760290064354,5.6932,4129.9,4128.6,2.6165]
[1760290064555,3.2078,4129.9,4129.7,0.43551]
[1760290064757,3.21056897,4129.9,4129.8,2.6165]
[1760290064953,8.26904562,4129.8,4129.1,2.6165]
[1760290065154,6.36943365,4129.9,4129.7,3.052]
[1760290065359,3.21056897,4129.9,4129.8,2.6165]
[1760290066765,3.22056897,4129.9,4129.8,2.6165]
[1760290067760,0.01276897,4129.9,4129.8,2.6165]
[1760290067959,3.2078,4130.4,4130.3,2.6165]
[1760290068965,3.2099135,4130.4,4130.3,2.6165]
[1760290070267,3.2099135,4130.4,4130.0,1.0531]
[1760290070268,3.2078,4131.5,4130.6,2.6165]
[1760290070460,3.2078,4131.5,4130.7,2.6165]
[1760290070662,8.94139233,4132.0,4131.3,2.6165]
[1760290070968,3.2078,4132.0,4131.3,2.6165]
[1760290071261,3.64610353,4132.0,4131.3,2.61849512]
[1760290071464,3.21083353,4132.0,4131.7,0.4353]
[1760290071765,3.21083353,4132.0,4131.8,2.6165]
[1760290071966,3.21083353,4132.0,4131.9,2.6165]
[1760290072562,3.21083353,4132.0,4131.8,2.6165]
[1760290072761,3.21083353,4132.0,4131.9,3.05178]
[1760290072762,0.00303353,4132.0,4131.9,3.05178]
[1760290072966,0.00303353,4132.0,4131.6,3.2078]
[1760290072967,3.2078,4133.1,4133.0,1.0531]
[1760290073163,3.2078,4133.1,4133.0,3.6696]
[1760290073363,3.2078,4133.9,4133.1,2.6165]
[1760290073964,3.21010059,4133.9,4133.1,2.6165]
[1760290074559,0.43508,4133.8,4133.1,2.6165]
[1760290075168,3.2078,4133.3,4132.5,1.0531]
[1760290075464,3.2078,4133.3,4132.9,2.6165]
[1760290075971,0.43515,4133.2,4132.6,0.4352]
[1760290076179,3.2078,4133.3,4132.6,0.4352]
[1760290076375,3.2078,4133.3,4132.7,2.6165]
[1760290076766,0.43515,4133.2,4132.5,1.0531]
[1760290077067,0.43515,4133.2,4132.6,0.4352]
[1760290077265,3.2078,4133.3,4132.7,0.43519]
[1760290077672,0.43515,4133.2,4132.6,2.6165]
[1760290077868,3.2078,4133.3,4132.6,2.6165]
[1760290078677,3.64294,4133.3,4132.6,3.0517]
[1760290079070,3.64294,4133.3,4132.7,0.43519]
[1760290079370,3.2078,4133.3,4133.1,2.6165]
[1760290079574,2.4854,4133.7,4133.1,3.05165]
[1760290079767,0.43512,4133.5,4133.1,2.6165]
[1760290079969,0.43513,4133.4,4133.1,2.6165]
[1760290080569,0.4351,4133.6,4133.2,2.6165]
[1760290080764,3.2078,4133.8,4133.3,0.43513]
[1760290080969,0.00230059,4133.9,4133.7,3.2078]
[1760290081170,0.00230059,4133.9,4133.8,2.6165]
[1760290082769,3.2078,4135.0,4134.4,0.43501]
[1760290083077,0.43497,4134.9,4134.5,1.0601]
[1760290083377,0.43497,4134.9,4134.6,2.4078]
[1760290083572,2.4535,4134.9,4134.5,2.4078]
[1760290083768,2.4535,4134.8,4134.5,2.40998723]
[1760290084072,0.43499,4134.7,4134.5,2.40998723]
[1760290084671,2.4535,4134.6,4134.5,0.00218723]
[1760290085575,5.57032131,4134.6,4133.5,1.0531]
[1760290085776,2.4535,4133.9,4133.0,4.2609]
[1760290086082,2.4535,4133.9,4133.2,0.43514]
[1760290086083,0.43507,4133.9,4133.2,0.43514]
[1760290086375,3.2078,4134.2,4133.3,2.4078]
[1760290086577,3.64278,4134.8,4134.3,0.43502]
[1760290086776,3.2078,4134.8,4134.5,1.0601]
[1760290087079,3.2078,4134.8,4134.5,1.4951]
[1760290087279,3.2078,4134.8,4134.6,2.4078]
[1760290087477,3.64278,4134.8,4134.6,2.4078]
[1760290087777,0.43501,4134.5,4134.3,0.00293935]
[1760290088078,4.99771971,4134.4,4134.3,0.00293935]
[1760290088886,0.43501,4134.5,4134.3,0.00293935]
[1760290089080,2.88851,4134.5,4134.3,0.00293935]
[1760290089280,5.00496517,4134.4,4134.3,0.00293935]
[1760290089679,2.55146517,4134.4,4134.3,0.00293935]
[1760290089872,0.43501,4134.5,4134.4,2.4078]
[1760290090071,3.2078,4134.8,4134.6,2.4078]
[1760290090377,0.00279989,4134.9,4134.6,2.4078]
[1760290090674,0.43776989,4134.9,4134.6,2.4078]
[1760290090881,0.43776989,4134.9,4134.5,1.0601]
[1760290090882,0.00279989,4134.9,4134.5,1.0601]
[1760290091187,0.00279989,4134.9,4134.8,2.4078]
[1760290091571,3.2078,4135.3,4135.2,2.84273]
[1760290091779,3.2078,4135.9,4135.8,2.4078]
[1760290092684,3.21000595,4135.9,4135.8,2.4078]
[1760290093277,0.00220595,4135.9,4135.8,2.4078]
[1760290095879,0.00220595,4135.9,4135.8,5.6156]
[1760290097380,3.2078,4137.0,4136.8,0.43476]
[1760290097690,3.2078,4137.0,4136.9,2.4078]
[1760290098389,3.21050032,4137.0,4136.9,2.4078]
[1760290098882,0.00270032,4137.0,4136.9,2.84255]
[1760290099386,0.00270032,4137.0,4136.9,2.4078]
[1760290100182,0.43744032,4137.0,4136.5,1.49489]
[1760290100391,0.00270032,4137.0,4136.8,2.4078]
[1760290100592,0.00270032,4137.0,4136.7,0.43477]
[1760290100884,0.00270032,4137.0,4136.8,2.4078]
[1760290101078,0.00270032,4137.0,4136.9,2.4078]
[1760290102688,3.64525032,4137.0,4136.6,2.4078]
[1760290103295,2.4535,4136.9,4136.6,2.4078]
[1760290103485,0.4348,4136.5,4136.3,5.6156]
[1760290103687,0.4348,4136.5,4136.3,3.2078]
[1760290103888,0.4348,4136.5,4136.4,2.4078]
[1760290104790,0.4348,4136.5,4136.3,3.2078]
[1760290104993,0.43483,4136.2,4135.7,3.64267]
[1760290105295,2.88833,4136.2,4135.7,3.64267]
[1760290105693,2.88833,4136.2,4135.8,0.43487]
[1760290105896,2.4535,4136.2,4135.8,0.43487]
[1760290106096,2.88831,4136.4,4135.8,2.84267]
[1760290106284,0.43482,4136.3,4135.9,2.4078]
[1760290106791,0.43482,4136.3,4135.9,0.43486]
[1760290107097,0.43482,4136.3,4136.0,2.4078]
[1760290107301,0.43482,4136.3,4135.9,0.43486]
[1760290107593,0.43482,4136.3,4136.0,2.4078]
[1760290107892,0.43482,4136.3,4135.7,3.2078]
[1760290107893,0.43485,4136.0,4135.6,2.4078]
[1760290108098,2.4535,4136.4,4135.5,1.495]
[1760290108099,0.43487,4135.8,4135.5,1.0601]
[1760290108397,0.43484,4136.1,4135.6,2.84269]
[1760290108593,0.43484,4136.1,4135.6,0.43489]
[1760290108795,0.43485,4136.0,4135.6,2.4078]
[1760290109095,0.43485,4136.0,4135.7,2.4078]
[1760290109491,0.43485,4136.0,4135.0,2.14747]
[1760290109492,0.43494,4135.1,4135.0,1.0601]
[1760290109703,0.43487,4135.8,4135.2,0.43493]
[1760290109999,0.43488,4135.7,4135.3,0.43492]
[1760290110188,3.03825426,4135.7,4135.4,2.4078]
[1760290110387,0.43488,4135.7,4135.4,2.4078]
[1760290110594,3.2078,4135.9,4135.5,1.0601]
[1760290110994,3.64266,4135.9,4135.5,1.495]
[1760290111397,3.2078,4135.9,4135.6,2.4078]
[1760290111904,3.2078,4135.9,4135.2,3.2078]
[1760290111905,2.88842,4135.3,4135.2,3.2078]
[1760290112099,2.4535,4135.2,4134.3,2.41073935]
[1760290112308,2.4535,4135.2,4134.3,0.43796935]
[1760290112507,0.43499,4134.7,4134.3,0.43796935]
[1760290112703,0.43499,4134.7,4134.4,2.3554]
[1760290112997,0.43499,4134.7,4134.3,0.43796935]
[1760290113598,0.43499,4134.7,4134.4,2.3554]
[1760290114207,0.43499,4134.7,4134.3,0.43796935]
[1760290114400,3.2078,4134.8,4134.5,2.3554]
[1760290114595,3.64278,4134.8,4134.3,0.00293935]
[1760290114796,3.64278,4134.8,4134.4,2.3554]
[1760290115097,0.43499,4134.7,4134.3,0.00293935]
[1760290115296,0.43499,4134.7,4134.4,2.3554]
[1760290115498,5.6408,4134.8,4134.5,2.3554]
[1760290115702,3.2078,4134.8,4134.7,2.3554]
[1760290115907,3.2078,4135.3,4135.2,2.3554]
[1760290117802,3.2078,4135.3,4134.5,0.43501]
[1760290117803,0.43498,4134.8,4134.5,0.43501]
[1760290118107,0.43501,4134.5,4134.3,0.00293935]
[1760290118406,0.43499,4134.7,4134.4,2.3554]
[1760290118607,0.43501,4134.5,4134.3,0.00293935]
[1760290118803,2.433,4134.5,4134.3,0.00293935]
[1760290119302,2.433,4134.5,4134.3,2.35833935]
[1760290119803,2.433,4134.4,4134.3,0.00293935]
[1760290120308,0.43501,4134.5,4134.3,2.35833935]
[1760290120803,0.435,4134.6,4134.3,2.35833935]
[1760290121107,3.2078,4135.3,4134.6,2.3554]
[1760290121308,0.43493,4135.2,4134.6,2.3554]
[1760290121503,0.43495,4135.1,4134.6,2.3554]
[1760290121806,3.64273,4135.3,4134.6,2.3554]
[1760290122503,3.2078,4135.3,4134.6,2.3554]
[1760290122707,0.43495,4135.1,4134.5,3.4075]
[1760290122907,5.6408,4135.3,4134.5,3.4075]